Cogmind - Beta 15 *** ADVENTURER MODE // 2025.08.07 @ 19:14:54 Player: Wall-E Result: Destroyed by G-47 Trooper with Particle Gun Performance ------------- Evolutions (2) 1000 Regions Visited (5) 1000 Robots Destroyed (74) 370 Value Destroyed (2258) 2258 Prototype IDs (2) 40 Alien Tech Used (0) 0 Bonus (0) 0 TOTAL SCORE: 4668 Bonus ------- None Cogmind --------- Core Integrity 0/550 Matter 277/300 Energy 93/160 System Corruption 0% Temperature Cool (9) Movement Hovering (120) Ox1 Location -8/Storage Parts ------- > --- POWER (1) -------- Light Nuclear Core > --- PROPULSION (3) --- Hover Unit > --- UTILITY (3) ------ Improved Cooling System > --- WEAPON (4) ------- (None) > --- INVENTORY (5) ---- Improved Cooling System Utility Shielding Drone Bay (2/2) Peak State ------------ > --- POWER ------------ Light Nuclear Core > --- PROPULSION ------- Hover Unit Improved Hover Unit > --- UTILITY ---------- Small Storage Unit Drone Bay Drone Bay > --- WEAPON ----------- Particle Gun Light EM Pulse Cannon Heavy Particle Cannon Ion Cannon > --- INVENTORY -------- Light Nuclear Core Improved Cooling System Improved Cooling System Utility Shielding Medium Armor Plating Drone Bay [Rating: 28] Favorites ----------- Power Light Ion Engine Engine Light Ion Engine Power Core Light Nuclear Core Propulsion Aluminum Leg Treads Light Treads Leg Aluminum Leg Hover Unit Hover Unit Utility Small Storage Unit Device Heat Sink Storage Small Storage Unit Protection Medium Armor Plating Weapon Heavy Assault Rifle Energy Gun Particle Gun Energy Cannon Ion Cannon Ballistic Gun Heavy Assault Rifle Special Weapon Welding Torch Build | -11 -10 -10 -9 -8 -8 ------- Run | Yrd Mat Min Mat Mat Sto Slots Evolved 4 | . . . 2 2 . Power . | . . . . . . Propulsion 1 | . . . . 1 . Utility 1 | . . . 1 . . Weapon 2 | . . . 1 1 . Parts Attached 57 | 7 7 6 14 15 8 Power 8 | 1 1 1 1 3 1 Engine 5 | 1 1 1 1 1 . Core 3 | . . . . 2 1 Reactor . | . . . . . . Propulsion 20 | 3 1 4 5 6 1 Treads 6 | 2 . 2 2 . . Leg 8 | 1 1 2 3 . 1 Wheel . | . . . . . . Hover 6 | . . . . 6 . Flight . | . . . . . . Utility 12 | 1 . 1 3 3 4 Device 8 | . . 1 2 1 4 Storage 2 | 1 . . . 1 . Processor . | . . . . . . Hackware . | . . . . . . Protection 2 | . . . 1 1 . Artifact . | . . . . . . Weapon 17 | 2 5 . 5 3 2 Energy Gun 6 | 1 2 . 2 1 . Energy Cannon 3 | . . . . 2 1 Ballistic Gun 7 | 1 3 . 3 . . Ballistic Cannon . | . . . . . . Launcher . | . . . . . . Special Weapon 1 | . . . . . 1 Impact Weapon . | . . . . . . Slashing Weapon . | . . . . . . Piercing Weapon . | . . . . . . Special Melee Weapon . | . . . . . . Unidentified Prototypes . | . . . . . . Parts Lost 26 | . 5 . 2 8 11 Power 3 | . 1 . . 1 1 Propulsion 6 | . 1 . . 3 2 Utility 4 | . . . . 1 3 Weapon 13 | . 3 . 2 3 5 Highest Loss Streak 5 | . 5 . 1 3 4 To Critical Strikes . | . . . . . . Average Backups 6 | 3 4 7 7 6 4 Power 1 | . 2 2 2 1 1 Propulsion 1 | 2 1 1 2 . . Utility 1 | . . . . 2 3 Weapon 1 | . 1 4 2 1 . Tool/Special . | . . . . . . Unused Backups 10 | . . 1 . 6 3 Power 5 | . . 1 . 4 . Propulsion . | . . . . . . Utility 5 | . . . . 2 3 Weapon . | . . . . . . Tool/Special . | . . . . . . Average Slot Usage (%) 87 | . 79 85 97 93 72 Engine 8 | . 12 14 11 6 . Core 2 | . . . . 2 7 Treads 2 | . 12 7 . . . Leg 12 | . 13 21 21 5 1 Hover 6 | . . . . 16 12 Device 10 | . . . 18 9 13 Storage 10 | . 14 14 11 9 8 Protection 3 | . . . 1 8 3 Energy Gun 10 | . 11 14 13 8 7 Energy Cannon 3 | . . . . 1 16 Ballistic Gun 15 | . 15 14 19 24 1 Peak Build Rating 28 | 6 8 10 16 22 28 Average Rating 14 | 4 6 8 12 18 20 On Entrance 10 | . 6 8 10 16 22 Naked Turns . | . . . . . . Heaviest Build 41 | 12 14 17 29 35 41 Greatest Support 40 | 40 40 40 23 33 13 Greatest Overweight (x) 10 | . . . 6 10 5 Average Overweight (x) . | . . . . . 2 Largest Inventory Capacity 25 | 8 8 8 8 25 8 Average Capacity 7 | 6 8 8 8 8 7 Most Carried 9 | 5 7 8 8 9 7 Average Carried 6 | 3 4 7 7 6 4 Final Capacity 8 | 8 8 8 8 8 5 Final Carried 8 | 4 7 8 8 3 3 Class Distribution -------------------- 32% | Mutant 30% | Gunner 29% | Tank 4% | Scavenger-Tank Dominant Class ---------------- Mutant | -10/Materials Mutant | -10/Mines Gunner | -9/Materials Tank | -8/Materials Gunner | -8/Storage Resources | -11 -10 -10 -9 -8 -8 ----------- Run | Yrd Mat Min Mat Mat Sto Matter Collected 1470 | 176 189 137 340 553 75 Remotely . | . . . . . . Salvage Created 2513 | . 163 392 402 1061 495 Parts 139 | . 19 26 25 53 16 Haulers Intercepted . | . . . . . . Recyclers Shooed . | . . . . . . Parts Field Recycled . | . . . . . . Retrieved Matter . | . . . . . . Parts Self-Destructed . | . . . . . . Prevented . | . . . . . . Kills | -11 -10 -10 -9 -8 -8 ------- Run | Yrd Mat Min Mat Mat Sto Combat Hostiles Destroyed 61 | . 8 8 10 25 10 Guns 51 | . 5 8 9 24 5 Cannons 6 | . . . . 1 5 AOE 3 | . 3 . . . . Classes Destroyed 8 | . 4 2 . 2 . Worker 5 | . 1 1 . 3 . Recycler 1 | . 1 . . . . Watcher 7 | . 2 . 4 1 . Swarmer 19 | . 8 . 4 7 . Grunt 30 | . . 6 4 13 7 Duelist 2 | . . . . 1 1 Sentry 8 | . . 2 2 3 1 Hunter 2 | . . . . 1 1 Best Kill Streak 9 | . 5 4 3 9 3 Combat Bots Only 7 | . 4 2 3 7 3 Max Kills in Single Turn 2 | . 2 1 2 2 1 Gunslinging 1 | . . . 1 1 . Exploded 2 | . 2 . . . . Melee . | . . . . . . Uniques/NPCs Destroyed . | . . . . . . Combat | -11 -10 -10 -9 -8 -8 -------- Run | Yrd Mat Min Mat Mat Sto Hostile Shots Fired 514 | . 151 32 56 131 144 Missed 115 | . 35 10 8 37 25 Hits 399 | . 116 22 48 94 119 Melee 6 | . . . . 2 4 Projectile 393 | . 116 22 48 92 115 Critical Strikes 14 | . . 2 . 4 8 Damage Taken 3891 | . 803 244 406 924 1514 Core 848 | . 187 47 57 76 481 Absorbed by Shields . | . . . . . . Ignored by Resistances 1158 | . 256 73 128 267 434 Regen/Repaired (Parts) 24 | . . . . 24 . Core Remaining (%) 63 | 100 . 6 85 . . Volleys Fired 144 | . 24 21 29 40 30 Largest 4 | . 2 2 3 4 4 Hottest 256 | . 88 88 138 204 256 Shots Fired 378 | . 39 41 67 152 79 Gun 323 | . 39 41 67 148 28 Cannon 55 | . . . . 4 51 Launcher . | . . . . . . Special . | . . . . . . Kinetic 192 | . 23 21 37 111 . Thermal 161 | . 4 20 30 39 68 Explosive . | . . . . . . Electromagnetic 25 | . 12 . . 2 11 Robot Hit Streak 49 | . 5 37 49 29 26 Robot Miss Streak 3 | . 2 . 2 3 1 Penetration Max . | . . . . . . Secondary Targets 11 | . . 2 3 6 . Max Gunslinging Chain 1 | . . 1 1 1 . Shots Hit Robots 278 | . 22 37 49 108 62 Core Hits 132 | . 13 16 20 57 26 Critical Kills 2 | . . . . 2 . Critical Parts Destroyed 2 | . . . . 2 . Critical Strikes 8 | . . . 2 6 . Burn 4 | . . . 2 2 . Destroy 4 | . . . . 4 . Melee Attacks . | . . . . . . Impact . | . . . . . . Slashing . | . . . . . . Piercing . | . . . . . . Sneak Attacks . | . . . . . . Combat Hostiles . | . . . . . . Follow-up Attacks . | . . . . . . Damage Inflicted 5104 | . 686 554 708 1782 1374 Guns 3665 | . 298 554 708 1738 367 Cannons 997 | . . . . 44 953 Explosions 385 | . 385 . . . . Melee . | . . . . . . Ramming 57 | . 3 . . . 54 Kinetic 2074 | . 177 248 381 1268 . Thermal 2460 | . 179 306 327 514 1134 Explosive 232 | . 232 . . . . Electromagnetic 281 | . 95 . . . 186 Impact . | . . . . . . Slashing . | . . . . . . Piercing . | . . . . . . Highest Corruption . | . . . . . . Average Corruption . | . . . . . . Corruption Purged . | . . . . . . Corruption Blocked . | . . . . . . Overload Shots . | . . . . . . Overflow Damage 78 | . 72 . . . 6 Projectiles 6 | . . . . . 6 Explosions 72 | . 72 . . . . Melee . | . . . . . . Knockbacks 1 | . . . . . 1 Impact 1 | . . . . . 1 Kinetic . | . . . . . . Secondary . | . . . . . . Self-Inflicted Damage 104 | . 92 . . . 12 Shots 2 | . 2 . . . . Rammed 9 | . . . . . 9 Targets Rammed 23 | . 2 . . . 21 Kicked 14 | . 2 . . . 12 Crushed . | . . . . . . Highest Temperature 358 | . 27 303 247 114 358 Average Temperature 85 | . 15 95 140 40 111 Received Heat Transfer 1878 | . . 189 159 450 1080 Effects 2 | . . . 2 . . Interference 2 | . . . 2 . . Siege Activations . | . . . . . . Martial Activations . | . . . . . . Shielding Activations . | . . . . . . Robots Disrupted . | . . . . . . Combat Hostiles . | . . . . . . Robots Corrupted . | . . . . . . Combat Hostiles . | . . . . . . Parts Fried 1 | . . . . . 1 Impact Corruptions . | . . . . . . Robots Melted 1 | . . . 1 . . Combat Hostiles 1 | . . . 1 . . Parts Melted 8 | . . 2 2 . 4 Heat Transferred 5604 | . 424 740 962 1369 2109 Parts Sabotaged . | . . . . . . Parts Stolen . | . . . . . . Parts Stripped . | . . . . . . Power Chain Reactions 1 | . 1 . . . . Alert | -11 -10 -10 -9 -8 -8 ------- Run | Yrd Mat Min Mat Mat Sto Maximum Alert Level 1 | . . . . 1 . Low Security (%) 95 | 100 100 100 100 82 100 Level 1 4 | . . . . 17 . Level 2 . | . . . . . . Level 3 . | . . . . . . Level 4 . | . . . . . . Level 5 . | . . . . . . High Security . | . . . . . . Max Security . | . . . . . . Peak Influence 237 | . 160 67 80 237 74 Initial 74 | . . 22 12 . 74 Average 44 | . 75 27 15 87 28 Influence Increases 1651 | . 259 219 289 624 260 Destroy 0b10 Robot/C 1220 | . 160 160 200 500 200 Destroy 0b10 Robot/NC 65 | . 20 5 20 20 . Destroy Leader 274 | . 34 30 58 102 50 Successful Hack 6 | . . . . . 6 Disable Machine 36 | . 18 9 9 . . Destroy Structure 35 | . 27 . 2 2 4 Lose Combat Pursuer 15 | . . 15 . . . Influence Decreases 1651 | . 190 249 328 417 467 Entered New Map 207 | . . 47 27 . 133 Time Decay 1254 | . 140 202 291 337 284 Lost Part 190 | . 50 . 10 80 50 Squads Dispatched 8 | . 1 . 1 3 3 Investigation 7 | . 1 . 1 3 2 Extermination . | . . . . . . Reinforcement 1 | . . . . . 1 Assault . | . . . . . . Garrison . | . . . . . . Intercept . | . . . . . . Searches Triggered . | . . . . . . Construction Impeded . | . . . . . . Haulers Reinforced . | . . . . . . Active Scanning Responses . | . . . . . . Cargo Convoy Interrupts . | . . . . . . Stealth | -11 -10 -10 -9 -8 -8 --------- Run | Yrd Mat Min Mat Mat Sto Distress Signals 2 | . 2 . . . . Communications Jammed . | . . . . . . Distress Signals . | . . . . . . Times Spotted 80 | . 15 9 15 26 15 Peak Tracking Total 9 | . 9 2 3 6 4 Tactical Retreats 1 | . . 1 . . . Traps | -11 -10 -10 -9 -8 -8 ------- Run | Yrd Mat Min Mat Mat Sto Traps Triggered 8 | . 2 . 1 3 2 Indirectly . | . . . . . . Trap Hack Attempts . | . . . . . . Triggered . | . . . . . . Disarmed 6 | . . . . . 6 Reprogrammed . | . . . . . . Reused . | . . . . . . Traps Extracted . | . . . . . . Installed . | . . . . . . Triggered . | . . . . . . Machines | -11 -10 -10 -9 -8 -8 ---------- Run | Yrd Mat Min Mat Mat Sto Machines Disabled 4 | . 2 1 1 . . Max in Single Turn 1 | . 1 1 1 . . Machines Repaired . | . . . . . . Machines Dismantled . | . . . . . . Machines Sabotaged . | . . . . . . Overloaded Fab Kills . | . . . . . . Hacking | -11 -10 -10 -9 -8 -8 --------- Run | Yrd Mat Min Mat Mat Sto Machines Accessed 10 | . 1 . 2 4 3 Terminals 9 | . 1 . 2 3 3 Fabricators . | . . . . . . Repair Stations 1 | . . . . 1 . Recycling Units . | . . . . . . Scanalyzers . | . . . . . . Garrison Access . | . . . . . . Total Hacks 26 | . 3 . 8 8 7 Successful 14 | . . . 6 5 3 Failed 12 | . 3 . 2 3 4 Catastrophic 1 | . 1 . . . . Database Lockouts . | . . . . . . Manual . | . . . . . . Terminals 23 | . 3 . 8 5 7 Fabricators . | . . . . . . Repair Stations 3 | . . . . 3 . Recycling Units . | . . . . . . Scanalyzers . | . . . . . . Garrison Access . | . . . . . . Terminal Hacks 12 | . . . 6 3 3 Record 4 | . . . 4 . . Prototype ID Bank 1 | . . . . 1 . Open Door 2 | . . . . . 2 Alert Level 2 | . . . 1 1 . Disarm Traps 1 | . . . . . 1 Dispatch Records 1 | . . . 1 . . Hauler Manifests 1 | . . . . 1 . Fabricator Hacks . | . . . . . . Repair Station Hacks 2 | . . . . 2 . Scan Component 1 | . . . . 1 . Repair 1 | . . . . 1 . Recycling Unit Hacks . | . . . . . . Scanalyzer . | . . . . . . Garrison Access Hacks . | . . . . . . Unauthorized Hacks . | . . . . . . Terminals . | . . . . . . Fabricators . | . . . . . . Repair Stations . | . . . . . . Recycling Units . | . . . . . . Scanalyzers . | . . . . . . Garrison Access . | . . . . . . Data Cores Recovered . | . . . . . . Used . | . . . . . . Hacking Detections 6 | . 1 . 1 2 2 Full Trace Events 5 | . 1 . . 2 2 Feedback Events . | . . . . . . Feedback Blocked . | . . . . . . Robot Schematics Acquired . | . . . . . . Robots Built . | . . . . . . Authchips . | . . . . . . Time . | . . . . . . Total Robot Build Rating . | . . . . . . Part Schematics Acquired . | . . . . . . Parts Built . | . . . . . . Authchips . | . . . . . . Time . | . . . . . . Total Part Build Rating . | . . . . . . Parts Repaired 1 | . . . . 1 . Time 32 | . . . . 32 . Parts Recycled . | . . . . . . Recycled Matter . | . . . . . . Retrieved Matter . | . . . . . . Retrieved Components . | . . . . . . Parts Scanalyzed . | . . . . . . Part Schematics Acquired . | . . . . . . Parts Damaged . | . . . . . . Bothacking | -11 -10 -10 -9 -8 -8 ------------ Run | Yrd Mat Min Mat Mat Sto Used RIF Installer . | . . . . . . Robots Hacked . | . . . . . . Non-combat . | . . . . . . Combat . | . . . . . . Robot Hacks Applied . | . . . . . . Relay Couplers Released . | . . . . . . Fabnet Peak Effective % . | . . . . . . Robots Rewired . | . . . . . . Allies Hacked . | . . . . . . Hacks Repelled . | . . . . . . Allies | -11 -10 -10 -9 -8 -8 -------- Run | Yrd Mat Min Mat Mat Sto Total Allies . | . . . . . . Largest Group . | . . . . . . Highest-Rated Group . | . . . . . . Highest-Rated Ally . | . . . . . . Total Orders . | . . . . . . Ally Attacks . | . . . . . . Total Damage . | . . . . . . Kills . | . . . . . . Allies Corrupted . | . . . . . . Allies Melted . | . . . . . . Intel | -11 -10 -10 -9 -8 -8 ------- Run | Yrd Mat Min Mat Mat Sto Active Infowar (turns) . | . . . . . . Robot Analysis Total . | . . . . . . Derelict Logs Recovered 2 | . . 2 . . . Drone Launches 10 | . . . . . 10 Drone Recoveries 4 | . . . . . 4 Exploration | -11 -10 -10 -9 -8 -8 ------------- Run | Yrd Mat Min Mat Mat Sto Turns Passed 3404 | 64 382 471 945 834 708 Spaces Moved 1801 | 42 222 302 515 459 261 Core 30 | 14 . . 1 1 14 Treads 167 | 22 82 63 . . . Legs 1060 | 6 140 239 514 121 40 Wheels . | . . . . . . Hover 544 | . . . . 337 207 Flight . | . . . . . . Fastest Speed 50 | 50 120 120 120 112 50 Average Speed 147 | 117 134 128 158 125 199 Slowest Speed 550 | 160 160 160 350 550 360 Overloaded Moves . | . . . . . . Propulsion Burnouts . | . . . . . . Robots Hopped . | . . . . . . Potential Cave-ins . | . . . . . . Cave-ins Triggered . | . . . . . . Exploration Rate (%) 43 | 4 52 73 52 40 37 Regions Visited 5 Branch Regions 2 Pre-discovered Areas 1 | . . 1 . . . Known Exits Taken . | . . . . . . Unknown Exits Taken 5 | 1 1 1 1 1 . Scrap Searched 1 | . . 1 . . . Spaces Dug . | . . . . . . Terrain Destroyed 30 | . 25 . . . 5 Melee . | . . . . . . Projectile 5 | . . . . . 5 AOE 25 | . 25 . . . . Terrain Rammed . | . . . . . . Walls Destroyed . | . . . . . . Machines Disabled . | . . . . . . Actions | -11 -10 -10 -9 -8 -8 --------- Run | Yrd Mat Min Mat Mat Sto Total 2254 | 54 267 347 588 626 372 Wait 119 | . . 5 11 73 30 Move 1796 | 41 221 301 514 458 261 Hop . | . . . . . . Pick Up 56 | 6 10 6 7 20 7 Fast Attach 15 | 4 . 1 5 4 1 Attach 31 | 2 5 2 3 12 7 Detach 2 | . . . . . 2 Swap 23 | 1 3 4 8 3 4 Drop 38 | . 2 7 11 16 2 Fire 144 | . 24 21 29 40 30 Melee . | . . . . . . Ram 9 | . . . . . 9 Kick 14 | . 2 . . . 12 Crush . | . . . . . . Escape Stasis . | . . . . . . Rewire 7 | . . . . . 7 Trap . | . . . . . . Miscellaneous . | . . . . . . Route ------- -11/Scrapyard -10/Materials (discovered 3 exits: *Mat / [*Min] / [*Sub]) -10/Mines -9/Materials (discovered 4 exits: *Mat x2 / *Min x2) -8/Materials -8/Storage History --------- Turn | Location | Event 18 | -11/Scrapyard | Discovered new exit (range 15) 65 | -11/Scrapyard | Entered Materials 163 | -10/Materials | Discovered new exit (range 16) 217 | -10/Materials | Core integrity fell below 50% 249 | -10/Materials | Lost 5 parts (1p1n3w) 318 | -10/Materials | Build established: Mutant 330 | -10/Materials | Discovered new exit (range 10) 406 | -10/Materials | Discovered new exit (range 12) 447 | -10/Materials | Entered Mines 637 | -10/Mines | Learned location of 1 exit from Materials 874 | -10/Mines | Discovered new exit (range 9) 882 | -10/Mines | Core integrity fell below 20% 918 | -10/Mines | Entered Materials 918 | -9/Materials | Evolved 2 slots: Utility x1, Weapon x1 919 | -9/Materials | Identified exit to Mines 1139 | -9/Materials | Discovered exit to Mines (range 13) 1213 | -9/Materials | Build established: Gunner 1300 | -9/Materials | Discovered new exit (range 3) 1791 | -9/Materials | Discovered new exit (range 10) 1863 | -9/Materials | Entered another Materials area 1863 | -8/Materials | Evolved 2 slots: Propulsion x1, Weapon x1 2321 | -8/Materials | Lost 3 parts (2n1w) 2328 | -8/Materials | Build established: Tank 2332 | -8/Materials | Destroyed 7 combat bots 2468 | -8/Materials | Repaired Imp. Hover Unit 2496 | -8/Materials | Discovered new exit (range 16) 2697 | -8/Materials | Entered Storage 3113 | -8/Storage | Lost 3 allies 3331 | -8/Storage | Lost 4 parts (1p1u2w) 3362 | -8/Storage | Core integrity fell below 50% 3389 | -8/Storage | Core integrity fell below 20% 3405 | -8/Storage | Destroyed by G-47 Trooper with Particle Gun Last Messages --------------- 03373_ K-01 Serf collects debris. 03374_ Slammed into G-47 Trooper. 03374_ Critical hit (Burn: +37). 03376_ Drone Bay destroyed. 03376_ >> Lost connection to Drone. 03376_ Slammed into G-47 Trooper. 03379_ Slammed into K-01 Serf. 03380_ Sml. Storage Unit destroyed. 03382_ Critical hit (Burn: +37). 03383_ Slammed into K-01 Serf. 03385_ Drone cannot be rewired. 03391_ Drone destroyed. 03395_ Slammed into G-47 Trooper. 03396_ G-47 Trooper knocked back. 03396_ Destabilizing: Core damaged (-16). 03397_ Slammed into G-47 Trooper. 03398_ U-05 Engineer destroyed. 03399_ Acquired Welding Torch. 03401_ Welding Torch destroyed. 03405_ Slammed into G-47 Trooper. Map ----- +----------------------------------------------------+ | ??????????????????????????????????????????? | | ???????????????????????????????????######## | | ???????????????????????????????##### # | | ??????????????????????########## # """" # | | ??????????????????????# # # """" # | | ??????????????????????# # # """" # | | ??????????????????????#""" # # """" # | | ??????????????????????#""" # # # | | ??????????????????????#""" + + """" # | | ??????????????????????#""" # # """" # | | ??????????????????????#""" # # """" # | | ??????????????????????# + # """" # | | ??????????????????????# # # # | | ??????????????????????########## # # | | ???????????????????????????????# # # | | ??????????????????????????####?# ######## | | ??????????????????????????#!! # #??????? | | ??????????????????????????#!! # #??????? | | ??????????????????????????#!! + #??????? | | ??????????????????????????####T# #??????? | | ?????????????????????????????### #??????? | | ???????????????########????????# #??????? | | ???????????????#! !## #???????## ##?????? | | ???????????????#! ############ k #?????? | | ???????????????# ## g #?????? | | ???????????????# % ##== @ m " #?????? | | ???????????????##%###!g! g r +?????? | | ???????????????#T%%%#%######### #?????? | | ???????????????##!%%/%#??????####+#####???? | | ????????????????#####%#??????# #???? | | ????????????????????#%#??????# """ #???? | | ????????????????????#%#??????# "R" #???? | | ????????????????????#%#??????# " " #???? | | ????????????????????# #??????# #???? | | ??????????????#######%######## """ #???? | | ??????????????# % + """ #???? | | ??????????????#%#####/######## """ #??? | | ??????????????#*## #????# ##??? | | ??????????????#%##""" #????###"Y"####???? | | ###???????????#%##""" %!#???????"""#??????? | | #?????#######%##"""% ##??????####??????? | | #??#"## % %^%+ #????????????????? | | #??T ##%######## ##????????????????? | | ####+##%## #?########?????????????????? | | + + #????# #???????????????????? | | # #### #????###???????????????????? | | # #????? #??????????????????????????? | | + %#???????#??????????????????????????? | | # ##/####???????????????????????????????? | | ### # = #???????????????????????????????? | +----------------------------------------------------+ Best States ------------- Heat Dissipation 58 Energy Generation 14 Energy Capacity 265 Matter Stores 300 Matter Capacity 300 Sight Range 16 Terrain Scan Density 10 Armor Coverage 225 Resistance: KI 20 Resistance: TH 20 Resistance: EX 20 Resistance: EM 20 Resistance: I 20 Resistance: S 20 Resistance: P 20 Evasion (%) 55 Recoil Reduction 2 Offensive Hacking 10 Item Schematics ----------------- None Robot Schematics ------------------ None Fabricated ------------ Nothing Repaired ---------- Imp. Hover Unit | 31% | -8/Materials Alien Tech Used ----------------- None Achievements -------------- Close Call Shopping List Challenges ------------ None Game ------ Seed AmuletTeleporterSlayer Manual? 0 Play Time 00:36:35 Cumulative 15.0 hours Start 2025.08.07 @ 18:34:10 End 2025.08.07 @ 19:14:54 Sessions 1 Manual Loads 0 Difficulty Adventurer Special Mode None Game No. 17 Rogue 0 Adventurer 17 Explorer 0 Win Type - Total 0 Types 0/0/0/0/0/0/0/0/0/0 Lore% 4 Gallery% 18 Achievement% 15 Wizard Run 0 Options --------- Layout 1 ASCII 1 Keyboard 0 Movement Mouse Keybinds 0 Fullscreen 2 Font 48/Smallcaps Map View 50x35 Zoom Use 0% Tactical HUD 1 Map Filters NONE Filters NONE Steam 1 RUN: 783c3cb7-9c50-464a-835b-229ea0786c4a